bitfinex/quotes_ETHUSD_20260213
["timestamp","ask_amount","ask_price","bid_price","bid_amount"]
[1770982159582,1.27603103,1959.2,1959.0,0.001]
[1770982161109,1.27603103,1959.2,1958.8,0.001]
[1770982161110,1.76976213,1959.2,1958.8,0.001]
[1770982162383,0.4937311,1959.1,1958.8,0.001]
[1770982162805,2.3807311,1959.0,1958.8,0.001]
[1770982163010,0.4937311,1958.9,1958.4,0.92]
[1770982164122,0.4937311,1958.8,1958.3,0.001]
[1770982164416,1.77008786,1958.7,1958.3,0.001]
[1770982166107,0.4937311,1958.6,1958.3,0.001]
[1770982166905,1.2764871,1958.5,1958.3,0.001]
[1770982167088,1.77019526,1958.6,1958.3,0.001]
[1770982168627,1.27646416,1958.6,1958.3,0.001]
[1770982168815,1.76999916,1958.9,1958.3,0.48129755]
[1770982169033,1.894,1958.8,1958.4,0.48029755]
[1770982169707,1.894,1958.8,1958.3,0.001]
[1770982169908,1.894,1958.8,1958.3,0.48129755]
[1770982170800,1.894,1958.8,1958.5,0.001]
[1770982170998,1.27635676,1958.7,1958.5,0.001]
[1770982171226,1.73481481,1958.7,1958.5,0.001]
[1770982172415,0.45845805,1958.6,1958.3,0.001]
[1770982173626,1.2764871,1958.5,1958.3,0.001]
[1770982174037,1.73491276,1958.6,1958.3,0.001]
[1770982174235,1.27645471,1958.6,1958.3,0.001]
[1770982174548,1.27638458,1958.7,1958.3,0.001]
[1770982174837,1.27638458,1958.7,1958.3,0.45734592]
[1770982175146,3.1772916,1958.8,1958.3,0.001]
[1770982175302,3.63574965,1958.8,1958.3,0.001]
[1770982175636,0.45845805,1958.7,1958.3,0.001]
[1770982178114,3.1772916,1958.8,1958.3,0.001]
[1770982179204,3.1772916,1958.8,1958.3,0.49824569]
[1770982179919,1.901,1958.8,1958.3,0.49824569]
[1770982180316,3.17730195,1958.8,1958.3,0.49824569]
[1770982180524,1.901,1958.8,1958.3,1.77485836]
[1770982180813,3.17729434,1958.8,1958.3,1.27761267]
[1770982181139,3.17729434,1958.8,1958.4,0.49724569]
[1770982183849,1.27629434,1958.8,1958.4,0.49824569]
[1770982184142,0.002,1958.7,1958.4,0.49824569]
[1770982189035,0.002,1958.7,1958.4,1.77478532]
[1770982191451,0.002,1958.7,1958.5,0.49724569]
[1770982192870,0.002,1958.7,1958.4,0.001]
[1770982193147,0.002,1958.7,1958.4,1.77479248]
[1770982194229,0.002,1958.7,1958.5,0.49724569]
[1770982195454,0.002,1958.7,1958.4,0.001]
[1770982195666,0.002,1958.7,1958.4,0.49824569]
[1770982196923,0.002,1958.7,1958.5,0.001]
[1770982197123,0.002,1958.6,1958.5,0.001]
[1770982201465,0.002,1958.6,1958.5,0.47582944]
[1770982202670,0.002,1958.7,1958.6,0.47482944]
[1770982204565,0.002,1958.8,1958.7,0.47482944]
[1770982204764,0.002,1959.1,1958.7,0.47482944]
[1770982206958,0.002,1959.1,1958.7,1.75113516]
[1770982207156,0.002,1959.1,1958.8,0.47482944]
[1770982207957,0.002,1959.1,1958.6,3.14837829]
[1770982208534,0.002,1959.1,1958.6,3.62320773]
[1770982209241,1.27809616,1959.1,1958.6,2.34682944]
[1770982209549,1.27809616,1959.1,1958.8,0.001]
[1770982209550,0.49248116,1959.0,1958.8,0.001]
[1770982210988,0.49448116,1959.0,1958.8,0.001]
[1770982211350,1.77066689,1959.0,1958.8,0.001]
[1770982211551,1.27818573,1959.0,1958.8,0.001]
[1770982212347,0.49248116,1958.9,1958.8,0.001]
[1770982212549,0.49248116,1958.9,1958.5,0.001]
[1770982212855,1.27818573,1959.0,1958.5,0.001]
[1770982213075,1.27816456,1959.0,1958.5,0.47582944]
[1770982213388,1.27816456,1959.0,1958.5,1.75230265]
[1770982213601,0.002,1959.0,1958.6,0.47482944]
[1770982214868,0.002,1959.0,1958.5,1.75230265]
[1770982215960,0.002,1959.0,1958.5,1.75231437]
[1770982217083,0.49448116,1959.0,1958.5,0.001]
[1770982217986,1.77068816,1959.0,1958.5,0.001]
[1770982218788,0.49248116,1958.9,1958.5,0.001]
[1770982220390,2.3729283,1958.8,1958.5,0.001]
[1770982220586,1.0966367,1958.7,1958.5,0.001]
[1770982220788,1.7687544,1958.9,1958.5,0.001]
[1770982221089,1.09665684,1958.8,1958.5,0.001]
[1770982221292,1.09665684,1958.7,1958.5,0.001]
[1770982221488,1.7687544,1958.9,1958.5,0.001]
[1770982221661,1.0968061,1958.8,1958.5,0.001]
[1770982221861,1.0968061,1958.7,1958.5,0.001]
[1770982222084,1.27627324,1958.9,1958.5,0.001]
[1770982222085,1.27623885,1958.9,1958.5,0.001]
[1770982222262,1.09681676,1958.8,1958.5,0.001]
[1770982222462,1.77065236,1959.0,1958.5,0.001]
[1770982222659,1.58933443,1958.9,1958.5,0.001]
[1770982222880,1.2781712,1959.0,1958.5,0.001]
[1770982222881,1.58933443,1958.8,1958.6,0.001]
[1770982223092,1.09685327,1958.7,1958.6,0.001]
[1770982225063,1.06985327,1958.7,1958.6,0.001]
[1770982225495,2.34621003,1958.7,1958.6,0.001]
[1770982225797,0.49248116,1958.6,1958.3,0.001]
[1770982225967,1.27635676,1958.7,1958.3,0.001]
[1770982226614,0.49248116,1958.8,1958.3,0.001]
[1770982226797,0.49248116,1958.8,1958.3,0.47582944]
[1770982226798,1.76877344,1958.8,1958.3,0.47582944]
[1770982226981,1.76877344,1958.8,1958.3,0.001]
[1770982228984,1.7687749,1958.8,1958.3,0.001]
[1770982229384,1.27629374,1958.8,1958.3,0.47582944]
[1770982229705,5.59739263,1958.9,1958.3,1.75243776]
[1770982230007,0.49248116,1958.8,1958.3,0.001]
[1770982231604,1.27635676,1958.7,1958.3,0.001]
[1770982232302,1.74982678,1958.7,1958.3,0.001]
[1770982232474,0.47347002,1958.6,1958.3,0.001]
[1770982233177,1.27627259,1958.9,1958.4,0.47723118]
[1770982234086,0.47347002,1958.8,1958.3,0.001]
[1770982234485,0.47347002,1958.8,1958.4,0.001]
[1770982234878,0.47547002,1958.7,1958.4,0.001]
[1770982236580,1.27642193,1958.6,1958.4,0.001]
[1770982236784,0.48357268,1958.4,1958.2,0.001]
[1770982237084,1.09688073,1958.3,1958.2,0.001]
[1770982238212,1.58045341,1958.3,1958.0,0.00153886]
[1770982238510,0.48357268,1958.1,1957.8,0.001]
[1770982238691,2.37370494,1958.0,1957.8,0.001]
[1770982238892,1.27682421,1958.0,1957.8,0.001]
[1770982239475,3.51124241,1957.9,1957.6,0.001]
[1770982239679,1.09560492,1957.8,1957.6,0.001]
[1770982239907,2.41557268,1957.9,1957.6,0.001]
[1770982240113,1.09556714,1957.8,1957.6,0.001]
[1770982240313,0.48357268,1957.8,1957.2,0.4969405]
[1770982240532,7.25104244,1957.3,1956.9,0.001]
[1770982240740,8.52844267,1957.1,1956.4,0.4969405]
[1770982241039,1.09448849,1957.0,1956.4,0.4969405]
[1770982241212,1.2771392,1957.5,1956.6,0.4959405]
[1770982241403,1.935,1957.3,1956.6,0.4959405]
[1770982241623,12.79552454,1957.7,1956.4,1.27884416]
[1770982241624,1.76051618,1957.8,1956.8,0.4959405]
[1770982241929,10.27818477,1957.7,1956.8,0.4959405]
[1770982242118,0.48357268,1957.5,1956.8,0.4959405]
[1770982242318,0.48357268,1957.5,1956.6,0.4959405]
[1770982242319,0.48357268,1957.4,1956.6,0.4959405]
[1770982242518,2.41957268,1957.3,1956.6,0.4959405]
[1770982242719,1.76090764,1957.2,1956.4,1.27881605]
[1770982242919,1.76090764,1957.2,1956.5,0.4959405]
[1770982245124,5.10842877,1957.6,1956.7,0.4959405]
[1770982245323,1.938,1957.5,1956.7,0.4959405]
[1770982245933,1.938,1957.5,1956.6,8.04519642]
[1770982245934,7.25104244,1958.1,1957.1,0.4959405]
[1770982246239,1.76197362,1958.0,1957.1,0.4959405]
[1770982246740,0.00153886,1958.0,1957.3,0.4959405]
[1770982247036,0.00153886,1958.0,1957.4,1.27720445]
[1770982247239,0.00153886,1958.0,1957.5,0.4959405]
[1770982248636,0.00153886,1958.0,1957.3,1.77320534]
[1770982249148,0.00153886,1958.0,1957.2,5.10931072]
[1770982249149,0.48511154,1958.0,1957.1,1.77329543]
[1770982249306,1.76045096,1957.9,1957.1,1.77329543]
[1770982249514,2.42557268,1957.8,1956.9,1.77342912]
[1770982250039,0.48357268,1957.6,1956.6,0.001]
[1770982250237,0.48357268,1957.4,1956.6,0.001]
[1770982250442,2.42457268,1957.3,1956.6,0.001]
[1770982250737,0.48357268,1957.2,1956.6,0.001]
[1770982251416,1.27740023,1957.1,1956.6,0.001]
[1770982252338,0.48357268,1957.0,1956.6,0.001]
[1770982253746,1.27753078,1956.9,1956.6,0.001]
[1770982254044,1.76110346,1956.9,1956.6,0.001]
[1770982254940,2.42657268,1956.8,1956.4,0.001]
[1770982255855,1.27766136,1956.7,1956.4,0.001]
[1770982256430,1.27766136,1956.7,1956.0,1.41847936]
[1770982256431,0.48357268,1956.6,1956.0,0.00153886]
[1770982259257,0.48357268,1956.4,1956.0,0.00153886]
[1770982259453,1.947,1956.3,1956.0,0.00153886]
[1770982260949,1.947,1956.3,1955.7,0.011]
[1770982260950,0.45384194,1956.2,1955.7,0.011]
[1770982261134,0.45384194,1956.2,1955.7,1e-08]
[1770982261335,0.45384194,1956.0,1955.4,0.00249128]
[1770982261545,2.40284194,1955.9,1955.4,0.00249128]
[1770982263447,1.2782493,1955.8,1955.4,0.00249128]
[1770982263662,1.73209124,1955.8,1955.4,0.00249128]
[1770982264969,1.2782493,1955.8,1955.4,0.00249128]
[1770982265764,0.45384194,1955.7,1955.4,0.00249128]
[1770982265991,0.45384194,1955.7,1954.8,5.11557078]
[1770982265992,0.45384194,1955.3,1954.1,0.45235671]
[1770982266268,0.45384194,1954.9,1954.0,0.00153886]
[1770982266467,0.45384194,1954.7,1954.0,0.00153886]
[1770982267248,1.952,1954.6,1954.0,0.00153886]
[1770982267448,2.873,1954.6,1954.0,0.00153886]
[1770982267649,1.27909951,1954.5,1954.0,0.00153886]
[1770982267848,1.27890321,1954.8,1954.0,0.00153886]
[1770982268043,1.952,1954.7,1954.0,0.00153886]
[1770982268381,1.952,1954.7,1953.6,1.23404866]
[1770982268382,0.45384194,1954.5,1953.6,1.23404866]
[1770982268967,1.836,1954.6,1953.7,0.45235671]
[1770982269345,2.28984194,1954.6,1953.7,0.45235671]
[1770982269545,2.28984194,1954.6,1953.3,5.11953782]
[1770982269546,1.27923041,1954.3,1953.4,1.73212538]
[1770982269751,0.45384194,1954.2,1953.4,1.27976867]
[1770982270639,1.27920565,1954.4,1953.5,0.45235671]
[1770982270838,3.22920565,1954.4,1953.5,0.45235671]
[1770982271681,1.27900972,1954.7,1953.7,0.45235671]
[1770982271860,6.49160296,1954.8,1953.7,0.45235671]
[1770982271861,0.45384194,1954.8,1953.7,0.45235671]
[1770982272066,3.68174581,1954.8,1953.7,0.45235671]
[1770982273767,3.68174581,1954.8,1953.8,1.27955778]
[1770982273943,3.68174581,1954.8,1953.8,1.73191449]
[1770982274955,3.68174581,1954.8,1953.7,1.27958838]
[1770982274956,0.45384194,1954.7,1953.7,1.27958838]
[1770982275157,0.45384194,1954.5,1953.5,0.001]
[1770982276269,0.45384194,1954.3,1953.5,0.001]
[1770982276568,0.45384194,1954.1,1953.5,0.001]
[1770982277280,0.45384194,1953.9,1952.6,0.001]
[1770982277482,0.45384194,1953.9,1952.0,0.00153886]
[1770982277483,0.45384194,1953.1,1952.0,1.2822265]
[1770982277651,0.17135747,1952.4,1952.0,0.00153886]
[1770982278344,0.17135747,1952.4,1951.8,0.1331952]
[1770982278345,0.45384194,1952.3,1951.8,0.1331952]
[1770982278552,0.45384194,1952.2,1951.8,0.1331952]
[1770982278742,0.45384194,1952.2,1951.0,1.28293241]
[1770982278956,0.45384194,1952.0,1951.0,0.00153886]
[1770982279212,0.45384194,1952.3,1951.0,1.73528023]
[1770982279480,9.71581657,1952.4,1951.1,0.45235671]
[1770982279481,1.45186662,1952.4,1951.1,0.45235671]
[1770982279696,0.17135747,1952.4,1951.1,0.45235671]
[1770982279972,0.17135747,1952.4,1951.3,0.45235671]
[1770982280279,1.45184123,1952.4,1951.5,0.45235671]
[1770982280478,1.45184123,1952.4,1951.4,1.28113149]
[1770982280781,1.90568317,1952.4,1951.4,1.28113149]
[1770982280945,0.17135747,1952.4,1951.5,0.45235671]
[1770982281966,0.08240602,1952.4,1951.5,0.45235671]
[1770982282165,0.00153886,1953.0,1951.8,1.28086894]
[1770982282391,0.00153886,1953.0,1951.9,0.45235671]
[1770982283067,0.00153886,1953.0,1951.8,9.44241889]
[1770982283068,1.73354102,1953.6,1952.3,0.45235671]
[1770982283273,1.73354102,1953.6,1952.4,0.45235671]
[1770982283473,1.73354102,1953.6,1952.3,2.782]
[1770982283995,1.73354102,1953.6,1952.3,3.23435671]
[1770982284898,1.73354102,1953.6,1952.3,2.782]
[1770982285203,7.12322,1953.5,1952.3,4.06248847]
[1770982285404,2.193766,1953.5,1952.3,4.06248847]
[1770982285868,1.73354102,1953.6,1952.3,4.51484518]
[1770982286069,3.67854102,1953.6,1952.4,0.45235671]
[1770982286382,3.67854102,1953.6,1952.3,4.06248847]
[1770982286383,16.871001,1953.5,1952.3,4.06248847]
[1770982286709,0.002,1952.4,1952.3,4.06248847]
[1770982286906,0.45384194,1953.4,1952.3,4.06248847]
[1770982287109,0.002,1953.2,1952.3,4.06248847]
[1770982287307,13.99164994,1953.1,1952.1,1.28062327]
[1770982287599,2.39784194,1953.1,1952.1,1.28062327]
[1770982287999,0.45384194,1953.0,1952.0,1.28222989]
[1770982289298,1.28014747,1952.9,1952.0,1.28222989]
[1770982290097,1.73398941,1952.9,1952.0,1.28222989]
[1770982290402,1.73398941,1952.9,1952.0,0.00153886]
[1770982290403,0.45384194,1952.8,1952.0,0.00153886]
[1770982291100,1.28027858,1952.7,1952.0,0.00153886]
[1770982291673,1.73675732,1952.7,1952.0,0.00153886]
[1770982292071,3.68058498,1953.0,1952.0,0.00153886]
[1770982292484,0.45647874,1952.9,1952.0,0.00153886]
[1770982293303,0.45647874,1952.7,1952.0,0.00153886]
[1770982294785,1.28021302,1952.8,1952.0,0.00153886]
[1770982294990,3.22321302,1952.8,1952.0,0.00153886]
[1770982295724,3.67765343,1952.8,1952.0,0.00153886]
[1770982296383,1.28021302,1952.8,1952.0,0.00153886]
[1770982297321,0.45644041,1953.2,1952.0,0.47025846]
[1770982297495,1.28001638,1953.1,1952.0,0.47025846]
[1770982297693,1.73644274,1953.2,1952.2,0.4687196]
[1770982298025,1.28200233,1953.2,1952.2,0.4687196]
[1770982298396,0.002,1953.2,1952.2,0.4687196]
[1770982299794,0.002,1953.2,1952.4,0.4687196]
[1770982300620,0.002,1952.7,1952.4,0.4687196]
[1770982300823,0.002,1953.2,1952.4,0.4687196]
[1770982301522,0.002,1953.2,1952.3,2.2035409]
[1770982301829,1.28195084,1953.2,1952.3,2.2035409]
[1770982302132,0.45444041,1953.1,1952.3,2.2035409]
[1770982304243,1.28195084,1953.2,1952.3,2.2035409]
[1770982304651,0.002,1953.2,1952.3,2.2035409]
[1770982305147,1.08613855,1953.1,1952.3,2.2035409]
[1770982305362,1.73640806,1953.2,1952.3,2.2035409]
[1770982305518,1.0861341,1953.1,1952.3,2.2035409]
[1770982305717,1.73640806,1953.2,1952.3,2.2035409]
[1770982305959,1.08613501,1953.1,1952.3,2.2035409]
[1770982306124,1.73640538,1953.2,1952.3,2.2035409]
[1770982306442,1.08692098,1953.1,1952.3,2.2035409]
[1770982306647,0.002,1953.2,1952.3,2.6722605]
[1770982306836,0.002,1953.2,1952.4,0.4687196]
[1770982307643,1.2819516,1953.2,1952.4,0.4687196]
[1770982307849,1.73639201,1953.2,1952.3,1.2805409]
[1770982308028,1.08696156,1953.1,1952.3,1.7492605]
[1770982308221,1.2819516,1953.2,1952.3,1.7492605]
[1770982308424,1.08688962,1953.1,1952.3,1.7492605]
[1770982308730,1.2819516,1953.2,1952.3,1.7492605]
[1770982309045,1.08687927,1953.1,1952.3,1.2805409]
[1770982309246,1.08687927,1953.0,1952.3,1.2805409]
[1770982309451,1.73639201,1953.2,1952.3,1.2805409]
[1770982309647,1.08809881,1953.1,1952.3,1.2805409]
[1770982309840,1.73639201,1953.2,1952.3,1.2805409]
[1770982309841,1.08809881,1953.0,1952.3,1.2805409]
[1770982310153,1.73639201,1953.2,1952.3,1.2805409]
[1770982310336,1.08833082,1953.1,1952.3,1.7492605]
[1770982310535,1.08833082,1953.0,1952.4,0.4687196]
[1770982310742,0.002,1953.2,1952.4,0.4687196]
[1770982310939,1.08835679,1953.1,1952.4,0.4687196]
[1770982311144,1.08835679,1953.0,1952.4,0.4687196]
[1770982311350,0.002,1953.2,1952.4,0.4687196]
[1770982311661,1.08864719,1953.1,1952.4,0.4687196]
[1770982311865,1.08864719,1953.0,1952.4,0.4687196]
[1770982312033,1.28195127,1953.2,1952.4,0.4687196]
[1770982312233,1.08867145,1953.1,1952.4,0.4687196]
[1770982312434,1.08867145,1953.0,1952.5,1.28040973]
[1770982312762,0.002,1953.2,1952.5,1.28040973]
[1770982312967,0.002,1953.0,1952.5,1.74912933]
[1770982313164,0.002,1953.0,1952.5,1.28040973]
[1770982313645,0.002,1953.0,1952.5,1.74912933]
[1770982315838,0.002,1953.0,1952.6,0.4687196]
[1770982316142,0.00062919,1953.0,1952.5,1.28040973]
[1770982316439,0.00062919,1953.0,1952.5,1.74912933]
[1770982318267,0.00062919,1953.0,1952.6,0.4687196]
[1770982318472,0.00062919,1953.0,1952.7,1.848]
[1770982318637,0.00062919,1953.0,1952.5,1.28040973]
[1770982318838,0.00062919,1953.0,1952.6,1.848]
[1770982320174,0.00062919,1953.0,1952.7,1.28027858]
[1770982322536,0.00062919,1953.0,1952.6,3.12830436]
[1770982323565,0.00062919,1953.0,1952.6,3.58519048]
[1770982324785,0.00062919,1953.0,1952.7,0.45688612]
[1770982325092,0.002,1953.6,1952.7,0.45688612]
[1770982325295,0.00153886,1954.0,1952.7,0.45688612]
[1770982325449,1.09135356,1953.9,1952.7,0.45688612]
[1770982325647,0.00153886,1954.0,1952.7,0.45688612]
[1770982325850,1.09138834,1953.9,1952.7,0.45688612]
[1770982326077,0.00153886,1954.0,1953.1,0.45688612]
[1770982326281,0.00153886,1954.0,1953.2,1.27995084]
[1770982326481,1.09091581,1953.9,1953.3,1.855]
[1770982326778,0.49152225,1953.9,1953.3,1.855]
[1770982327004,0.00153886,1954.0,1953.3,1.855]
[1770982327303,1.09091481,1953.9,1953.3,1.855]
[1770982327489,0.49152225,1953.9,1953.3,1.855]
[1770982327696,0.002,1953.8,1953.3,1.855]
[1770982328909,0.002,1953.8,1953.4,1.2798198]
[1770982329705,0.002,1953.8,1952.6,1.28034415]
[1770982329706,0.49352225,1953.8,1952.6,1.28034415]
[1770982329882,0.49152225,1953.6,1952.6,3.13534415]
[1770982330492,0.49152225,1953.6,1952.7,0.45688612]
[1770982331178,0.49152225,1953.6,1952.8,1.28021302]
[1770982331584,0.002,1953.8,1952.8,1.28021302]
[1770982331888,0.002,1953.8,1952.9,0.45688612]
[1770982332089,0.002,1953.8,1953.1,0.45688612]
[1770982332286,0.49152225,1952.6,1952.1,0.001]
[1770982332486,8.84641633,1953.2,1951.5,0.001]
[1770982332487,3.591099,1951.8,1951.5,0.001]
[1770982332810,3.590099,1951.6,1951.3,1.28118977]
[1770982333178,3.590099,1951.6,1951.0,6.10896269]
[1770982333179,3.590099,1951.6,1951.1,1.28132848]
[1770982333919,3.590099,1951.6,1951.0,2.2647695]
[1770982334210,3.590099,1951.4,1951.0,0.52653886]
[1770982334434,1.28100439,1951.6,1951.0,0.52653886]
[1770982334435,3.590099,1951.3,1951.0,0.52653886]
[1770982334733,3.590099,1951.2,1951.0,0.00153886]
[1770982338038,3.590099,1951.1,1951.0,0.00153886]
[1770982339440,0.49152225,1951.0,1949.0,0.00153886]
[1770982339766,3.590099,1948.6,1948.0,4.13627292]
[1770982339911,3.590099,1949.0,1948.0,4.13627292]
[1770982340548,3.59163786,1949.0,1948.0,4.13627292]
[1770982341014,3.590099,1948.9,1948.0,4.13627292]
[1770982341208,3.590099,1948.8,1948.0,4.13627292]
[1770982341619,3.590099,1948.8,1948.1,1.28330167]
[1770982341929,0.00153886,1949.0,1948.2,2.168134]
[1770982342124,0.00153886,1949.0,1948.2,4.13627292]
[1770982342504,0.49152225,1949.5,1948.2,4.59315904]
[1770982342708,1.77363928,1949.9,1948.4,5.10554012]
[1770982342927,3.71263928,1949.9,1948.4,0.45688612]
[1770982343206,4.63663928,1949.9,1948.5,3.239434]
[1770982343430,4.63663928,1949.9,1948.5,2.922]
[1770982343834,1.77363928,1949.9,1948.6,1.28297239]
[1770982344041,1.77363928,1949.9,1948.6,5.41924531]
[1770982344209,4.63663928,1949.9,1948.6,5.41924531]
[1770982344710,1.77363928,1949.9,1948.6,5.41924531]
[1770982345020,4.63563928,1949.9,1948.6,5.41924531]
[1770982345219,0.49152225,1949.9,1948.6,7.75713143]
[1770982345405,0.00153886,1950.0,1948.8,0.45688612]
[1770982345406,1.28359507,1950.0,1948.8,0.45688612]
[1770982345735,1.28359507,1950.0,1948.9,1.28277489]
[1770982345905,0.00153886,1950.0,1948.9,5.41904781]
[1770982346539,0.49306111,1950.0,1948.9,4.13627292]
[1770982346732,1.938,1949.9,1948.9,4.13627292]
[1770982346933,0.49152225,1949.8,1948.9,4.13627292]
[1770982347332,2.42952225,1949.8,1948.9,4.13627292]
[1770982347646,2.42852225,1949.8,1948.9,4.13627292]
[1770982348025,1.28224855,1949.7,1948.9,5.41898355]
[1770982349756,0.00153886,1950.0,1948.9,5.87586967]
[1770982349934,0.00153886,1950.0,1949.0,0.45688612]
[1770982350137,0.00153886,1950.0,1949.2,1.28257746]
[1770982350535,0.00153886,1950.0,1949.3,4.13627292]
[1770982351962,0.00153886,1950.0,1949.2,1.28257746]
[1770982352138,0.00153886,1950.0,1949.4,1.28244588]
[1770982352952,0.002,1949.6,1949.4,1.28244588]
[1770982353183,0.002,1949.6,1949.4,4.13627292]
[1770982354356,0.002,1949.6,1949.4,5.41870979]
[1770982355546,0.002,1949.6,1949.4,5.41871256]
[1770982356364,0.002,1949.6,1949.4,4.05588292]
[1770982356560,0.002,1949.6,1949.3,1.28247254]
[1770982356760,0.002,1949.6,1949.5,4.05588292]
[1770982357548,0.00153886,1950.0,1949.5,4.05588292]
[1770982358350,0.00153886,1950.0,1949.6,1.28231432]
[1770982359248,0.00153886,1950.0,1949.7,4.05588292]
[1770982359768,0.00153886,1950.0,1949.7,3.81632414]
[1770982360278,1.77800807,1950.7,1949.8,1.28218278]
[1770982360477,0.49640399,1950.7,1949.8,1.28218278]
[1770982360692,1.7793756,1951.0,1949.9,3.81632414]
[1770982361341,1.075075,1950.9,1949.9,3.81632414]
[1770982361565,1.075075,1950.8,1949.9,4.2790527]
[1770982361771,0.00153886,1951.0,1950.0,0.46272856]
[1770982361981,0.00153886,1951.0,1950.1,1.886]
[1770982361982,1.28293683,1951.0,1950.1,1.886]
[1770982362184,1.07861837,1950.9,1950.1,1.886]
[1770982362384,1.07861837,1950.8,1950.2,5.09824394]
[1770982362684,0.00153886,1951.0,1950.2,5.09824394]
[1770982362891,1.078574,1950.9,1950.2,5.09824394]
[1770982363068,1.078574,1950.8,1950.2,5.09824394]
[1770982363393,0.49640399,1950.9,1950.3,3.81632414]
[1770982363583,1.07980799,1950.8,1950.3,3.81632414]
[1770982363786,1.07980799,1950.7,1950.3,3.81632414]
[1770982363983,1.35296843,1950.9,1950.3,3.81632414]
[1770982364303,1.07981712,1950.8,1950.4,1.28178835]
[1770982364509,1.07981712,1950.7,1950.4,1.28178835]
[1770982364669,1.35296843,1950.9,1950.4,1.28178835]
[1770982364870,1.08065367,1950.8,1950.4,1.28178835]
[1770982365221,1.08065367,1950.7,1950.5,3.81632414]
[1770982365382,1.08065367,1950.6,1950.5,3.81632414]
[1770982365720,1.08065367,1950.8,1950.5,3.81632414]
[1770982366006,1.08065367,1950.7,1950.5,3.81632414]
[1770982366209,1.08065367,1950.6,1950.5,3.81632414]
[1770982366373,1.35296843,1950.9,1950.5,5.02566737]
[1770982366905,0.002,1950.6,1950.5,5.02566737]
[1770982367475,0.002,1950.6,1950.5,1.28169423]
[1770982368227,0.002,1950.6,1950.3,5.12718853]
[1770982368372,1.35296843,1950.8,1950.3,5.12718853]
[1770982368706,1.35296843,1950.8,1950.4,3.73997314]
[1770982369112,1.35296843,1950.8,1950.3,1.28185407]
[1770982369313,1.35296843,1950.7,1950.4,3.73997314]
[1770982369513,1.35296843,1950.8,1950.4,3.73997314]
[1770982370389,1.35296843,1950.8,1950.4,5.02171279]
[1770982371192,1.35296843,1950.7,1950.4,5.02171279]
[1770982371387,2.72234186,1951.0,1950.4,5.02171279]
[1770982371706,0.00153886,1951.0,1950.4,5.02171279]
[1770982372226,2.72234186,1951.0,1950.4,5.02171279]
[1770982372997,0.00153886,1951.0,1950.4,5.02171279]
[1770982374102,2.72234186,1951.0,1950.4,5.02171279]
[1770982375498,0.00153886,1951.0,1950.4,1.28173965]
[1770982375828,0.00153886,1951.0,1950.5,3.73997314]
[1770982377030,0.49794285,1951.0,1950.5,3.73997314]
[1770982377728,0.49794285,1951.0,1950.5,5.02169416]
[1770982378121,0.49794285,1951.0,1950.5,3.73997314]
[1770982378332,0.49640399,1950.8,1949.8,3.17318278]
[1770982378532,1.77812662,1950.5,1949.9,4.07613952]
[1770982378830,1.0857549,1950.4,1949.9,2.7940403]
[1770982379026,1.0857549,1950.3,1949.9,2.7940403]
[1770982379229,1.0857549,1950.2,1949.9,2.7940403]
[1770982379400,1.0857549,1950.1,1949.9,2.7940403]
[1770982379601,1.0857549,1950.0,1949.9,4.07615733]
[1770982379801,0.49640399,1950.5,1949.9,4.07615733]
[1770982380416,1.28166401,1950.6,1949.9,4.07615733]
[1770982380604,3.69703532,1950.7,1949.9,4.07615733]
[1770982380905,3.69703532,1950.7,1950.4,0.001]
[1770982381112,3.69703532,1950.7,1949.9,4.07615733]
[1770982381711,1.77803532,1950.7,1949.9,4.07615733]
[1770982381910,2.41212195,1950.8,1949.9,1.28211703]
[1770982382241,2.41212195,1950.8,1950.0,2.7940403]
[1770982382752,1.77569488,1950.8,1950.1,1.28198553]
[1770982382902,0.49412195,1950.8,1950.1,1.28198553]
[1770982383101,3.20046997,1950.9,1950.1,1.28198553]
[1770982383299,0.002,1950.9,1950.2,2.7940403]
[1770982383536,0.002,1950.9,1950.3,1.893]
[1770982383843,0.002,1950.9,1950.4,2.7940403]
[1770982384825,0.002,1950.9,1950.5,1.28172263]
[1770982385818,0.002,1950.9,1950.6,2.7940403]
[1770982386518,0.002,1950.9,1950.5,1.28172263]
[1770982386727,0.002,1950.9,1950.6,2.7940403]
[1770982387141,0.002,1950.9,1950.7,1.28159122]
[1770982387838,0.00868309,2119.0,1950.7,3.17659122]
[1770982387839,0.49412195,1951.7,1950.7,3.17659122]
[1770982388035,0.49412195,1951.7,1950.8,2.7940403]
[1770982389240,2.40612195,1951.7,1950.8,2.7940403]
[1770982389555,1.2810002,1951.6,1950.9,1.28145983]
[1770982389923,1.77510827,1951.7,1951.0,2.7940403]
[1770982391451,0.49412195,1951.7,1951.1,1.28132848]
[1770982391834,1.09005819,1951.6,1951.2,2.7940403]
[1770982392058,1.09005819,1951.5,1951.2,2.7940403]
[1770982392361,1.09005819,1951.4,1951.2,2.7940403]
[1770982392530,1.09005819,1951.3,1951.2,2.7940403]
[1770982392730,0.002,1951.8,1951.2,2.7940403]
[1770982392945,0.002,1951.6,1951.2,2.7940403]
[1770982393372,0.002,1951.6,1951.3,2.7940403]
[1770982393667,0.002,1951.6,1951.3,1.28119715]
[1770982395740,0.002,1951.6,1951.4,2.7940403]
[1770982396863,1.28043371,1952.5,1951.5,4.6920403]
[1770982397038,0.49412195,1952.4,1951.5,1.898]
[1770982397867,1.2805409,1952.3,1951.6,1.2810002]
[1770982398368,1.77465097,1952.4,1951.7,2.7940403]
[1770982399061,1.77440053,1952.7,1951.8,2.7940403]
[1770982399262,0.49412195,1952.6,1951.7,2.7940403]
[1770982400847,0.49412195,1952.4,1951.8,1.28086894]
[1770982401341,0.49412195,1952.4,1951.9,2.7940403]
[1770982401758,0.49412195,1952.6,1951.9,2.7940403]
[1770982401962,1.7744661,1952.6,1951.9,2.7940403]
[1770982402185,0.49412195,1952.5,1951.9,2.7940403]
[1770982402576,0.49412195,1952.5,1951.5,1.898]
[1770982402796,0.49412195,1952.5,1951.6,2.7940403]
[1770982402957,0.49412195,1952.3,1951.3,4.07521791]
[1770982403813,0.49412195,1952.3,1951.3,2.7940403]
[1770982403960,1.28047531,1952.4,1951.0,0.00153886]
[1770982403961,0.49412195,1951.8,1951.0,0.00153886]
[1770982404164,0.49412195,1951.6,1951.0,0.00153886]
[1770982404500,0.49412195,1951.4,1950.7,0.001]
[1770982404869,0.49412195,1951.2,1950.7,0.001]